[Event "*** Titled Tuesday Blitz"]
[Site "Chess.com"]
[Date "2020.05.12"]
[Round "6"]
[White "Xeniya2005"]
[Black "AminMolaei"]
[Result "0-1"]
[WhiteElo "2277"]
[BlackElo "2534"]
[TimeControl "180+1"]
[EndTime "11:08:06 PDT"]
[Termination "AminMolaei won on time"]

1. e4 {[%clk 0:03:00.9]} 1... c5 {[%clk 0:02:58.8]} 2. Nf3 {[%clk 0:03:00]} 2...
g6 {[%clk 0:02:58.4]} 3. d4 {[%clk 0:02:58]} 3... cxd4 {[%clk 0:02:59.3]} 4.
Nxd4 {[%clk 0:02:57.5]} 4... Nc6 {[%clk 0:02:59.6]} 5. Nc3 {[%clk 0:02:57.2]}
5... Bg7 {[%clk 0:02:59.6]} 6. Nb3 {[%clk 0:02:56.7]} 6... Nf6 {[%clk
0:02:59.7]} 7. Be2 {[%clk 0:02:56.2]} 7... O-O {[%clk 0:03:00]} 8. O-O {[%clk
0:02:56.2]} 8... d6 {[%clk 0:03:00.5]} 9. Re1 {[%clk 0:02:55.5]} 9... a5 {[%clk
0:03:00.9]} 10. a4 {[%clk 0:02:48.2]} 10... Be6 {[%clk 0:03:01.1]} 11. Bf1
{[%clk 0:02:42.9]} 11... Rc8 {[%clk 0:03:00.9]} 12. Nd5 {[%clk 0:02:30.1]} 12...
Bxd5 {[%clk 0:02:57.5]} 13. exd5 {[%clk 0:02:29.9]} 13... Nb4 {[%clk 0:02:58.1]}
14. c4 {[%clk 0:02:29.6]} 14... Nd7 {[%clk 0:02:56.8]} 15. g3 {[%clk 0:02:02.1]}
15... Nc5 {[%clk 0:02:54.9]} 16. Nxc5 {[%clk 0:02:01.2]} 16... Rxc5 {[%clk
0:02:55.8]} 17. Rb1 {[%clk 0:01:59.9]} 17... Rc8 {[%clk 0:02:40.1]} 18. Bg5
{[%clk 0:01:51.4]} 18... Re8 {[%clk 0:02:37.4]} 19. Qd2 {[%clk 0:01:49.7]} 19...
Qd7 {[%clk 0:02:32.3]} 20. b3 {[%clk 0:01:31.7]} 20... Bf6 {[%clk 0:02:19.8]}
21. Be3 {[%clk 0:01:31.1]} 21... Qc7 {[%clk 0:02:09.8]} 22. Bh3 {[%clk
0:01:29.8]} 22... Ra8 {[%clk 0:02:07.1]} 23. Rbc1 {[%clk 0:01:25.9]} 23... Na6
{[%clk 0:02:05.5]} 24. Re2 {[%clk 0:00:55.9]} 24... Nc5 {[%clk 0:02:01.9]} 25.
Bxc5 {[%clk 0:00:54.1]} 25... Qxc5 {[%clk 0:01:57.2]} 26. Rce1 {[%clk
0:00:51.2]} 26... Red8 {[%clk 0:01:48.5]} 27. Kg2 {[%clk 0:00:50.3]} 27... Ra6
{[%clk 0:01:48.1]} 28. g4 {[%clk 0:00:42.7]} 28... Rb6 {[%clk 0:01:37.8]} 29. g5
{[%clk 0:00:41.8]} 29... Be5 {[%clk 0:01:36.3]} 30. f4 {[%clk 0:00:40.9]} 30...
Bd4 {[%clk 0:01:32]} 31. Qd3 {[%clk 0:00:33.2]} 31... Rf8 {[%clk 0:01:22.4]} 32.
Rxe7 {[%clk 0:00:30.7]} 32... Bf2 {[%clk 0:01:20.3]} 33. R1e2 {[%clk 0:00:29.9]}
33... Qa3 {[%clk 0:01:09.9]} 34. Rxf2 {[%clk 0:00:20.3]} 34... Rxb3 {[%clk
0:01:09.3]} 35. Qe4 {[%clk 0:00:20]} 35... Rxh3 {[%clk 0:01:08.1]} 36. f5 {[%clk
0:00:20.1]} 36... Rh5 {[%clk 0:01:05.8]} 37. Qg4 {[%clk 0:00:19.7]} 37... Qxa4
{[%clk 0:01:01.2]} 38. fxg6 {[%clk 0:00:19.6]} 38... hxg6 {[%clk 0:01:00.4]} 39.
h4 {[%clk 0:00:14.6]} 39... Rh7 {[%clk 0:00:56.4]} 40. Qf4 {[%clk 0:00:12.9]}
40... Qb4 {[%clk 0:00:49.9]} 41. Rd7 {[%clk 0:00:12.2]} 41... b5 {[%clk
0:00:42.2]} 42. Rxd6 {[%clk 0:00:12.4]} 42... Rxh4 {[%clk 0:00:37.8]} 43. Qxh4
{[%clk 0:00:09.4]} 43... Qxd6 {[%clk 0:00:38]} 44. Qd4 {[%clk 0:00:08.5]} 44...
bxc4 {[%clk 0:00:35]} 45. Rf6 {[%clk 0:00:08]} 45... Qb4 {[%clk 0:00:28.2]} 46.
d6 {[%clk 0:00:07.7]} 46... c3 {[%clk 0:00:28.4]} 47. Qd3 {[%clk 0:00:06.2]}
47... Qg4+ {[%clk 0:00:24.8]} 48. Qg3 {[%clk 0:00:05]} 48... Qxg3+ {[%clk
0:00:20.2]} 49. Kxg3 {[%clk 0:00:05.1]} 49... c2 {[%clk 0:00:20.2]} 50. Rf1
{[%clk 0:00:05.1]} 50... Rd8 {[%clk 0:00:19.5]} 51. Rc1 {[%clk 0:00:04.3]} 51...
Rxd6 {[%clk 0:00:19.6]} 52. Rxc2 {[%clk 0:00:04.9]} 52... Rd4 {[%clk 0:00:20.1]}
53. Rc5 {[%clk 0:00:04.2]} 53... a4 {[%clk 0:00:19.8]} 54. Ra5 {[%clk
0:00:04.5]} 54... Kf8 {[%clk 0:00:19.7]} 55. Ra7 {[%clk 0:00:04.1]} 55... Ke8
{[%clk 0:00:18.5]} 56. Rb7 {[%clk 0:00:04]} 56... Rd7 {[%clk 0:00:15.3]} 57.
Rb8+ {[%clk 0:00:04.2]} 57... Ke7 {[%clk 0:00:15.4]} 58. Ra8 {[%clk 0:00:04.1]}
58... Rd4 {[%clk 0:00:15.2]} 59. Ra6 {[%clk 0:00:04]} 59... Rb4 {[%clk
0:00:14.4]} 60. Kf3 {[%clk 0:00:03.8]} 60... Kd7 {[%clk 0:00:13]} 61. Kg3 {[%clk
0:00:03.3]} 61... Ke7 {[%clk 0:00:12.9]} 62. Kf3 {[%clk 0:00:03.1]} 62... Rb3+
{[%clk 0:00:12.7]} 63. Kf4 {[%clk 0:00:03.3]} 63... a3 {[%clk 0:00:12.8]} 64.
Ke5 {[%clk 0:00:03]} 64... Rb5+ {[%clk 0:00:12.7]} 65. Kf4 {[%clk 0:00:03.2]}
65... Rb4+ {[%clk 0:00:13.1]} 66. Ke5 {[%clk 0:00:03.1]} 66... Rb5+ {[%clk
0:00:09.5]} 67. Kf4 {[%clk 0:00:03.1]} 67... Rb3 {[%clk 0:00:10.4]} 68. Ke5
{[%clk 0:00:02]} 68... Re3+ {[%clk 0:00:07.7]} 69. Kf4 {[%clk 0:00:01.8]} 69...
Rh3 {[%clk 0:00:08]} 70. Ke5 {[%clk 0:00:01.5]} 70... Kd7 {[%clk 0:00:08.1]} 0-1

[Event "*** Titled Tuesday Blitz"]
[Site "Chess.com"]
[Date "2020.05.12"]
[Round "6"]
[White "OhanyanEminChess"]
[Black "ViktoriyaTarasova"]
[Result "0-1"]
[WhiteElo "2457"]
[BlackElo "2239"]
[TimeControl "180+1"]
[EndTime "11:08:07 PDT"]
[Termination "ViktoriyaTarasova won by resignation"]

1. e4 {[%clk 0:03:00.9]} 1... e5 {[%clk 0:02:59]} 2. Nf3 {[%clk 0:02:58.1]} 2...
Nc6 {[%clk 0:02:58.4]} 3. Bc4 {[%clk 0:02:56.7]} 3... Bc5 {[%clk 0:02:57.4]} 4.
O-O {[%clk 0:02:55.2]} 4... Nf6 {[%clk 0:02:56.6]} 5. d3 {[%clk 0:02:47.6]} 5...
h6 {[%clk 0:02:54.9]} 6. c3 {[%clk 0:02:47]} 6... d6 {[%clk 0:02:42.1]} 7. d4
{[%clk 0:02:46.7]} 7... Bb6 {[%clk 0:02:34.6]} 8. dxe5 {[%clk 0:02:40.9]} 8...
Nxe5 {[%clk 0:02:34.2]} 9. Nxe5 {[%clk 0:02:40.4]} 9... dxe5 {[%clk 0:02:34.2]}
10. Qxd8+ {[%clk 0:02:40.7]} 10... Kxd8 {[%clk 0:02:34]} 11. Nd2 {[%clk
0:02:26]} 11... Ke7 {[%clk 0:02:28.9]} 12. h3 {[%clk 0:02:08.5]} 12... Be6
{[%clk 0:02:26.1]} 13. Bxe6 {[%clk 0:02:06.6]} 13... Kxe6 {[%clk 0:02:23.7]} 14.
Re1 {[%clk 0:02:04.7]} 14... c6 {[%clk 0:02:21.8]} 15. Nc4 {[%clk 0:02:03]}
15... Bc7 {[%clk 0:02:21.9]} 16. f3 {[%clk 0:01:05.3]} 16... b5 {[%clk
0:02:20.4]} 17. Ne3 {[%clk 0:01:04.3]} 17... Bb6 {[%clk 0:02:09]} 18. Kf1 {[%clk
0:00:59.8]} 18... g6 {[%clk 0:02:07.9]} 19. Nc2 {[%clk 0:00:53.7]} 19... a5
{[%clk 0:02:07.3]} 20. Be3 {[%clk 0:00:53.9]} 20... Bxe3 {[%clk 0:02:05.7]} 21.
Nxe3 {[%clk 0:00:53.9]} 21... Rad8 {[%clk 0:02:06.2]} 22. Rad1 {[%clk
0:00:53.2]} 22... Ke7 {[%clk 0:02:04.7]} 23. Rxd8 {[%clk 0:00:52.8]} 23... Rxd8
{[%clk 0:02:04.1]} 24. Rd1 {[%clk 0:00:53.7]} 24... Rxd1+ {[%clk 0:02:03]} 25.
Nxd1 {[%clk 0:00:54.6]} 25... Nd7 {[%clk 0:02:03.1]} 26. Kf2 {[%clk 0:00:53]}
26... Nc5 {[%clk 0:02:03.2]} 27. Ke3 {[%clk 0:00:52.5]} 27... f5 {[%clk
0:02:02.3]} 28. Nf2 {[%clk 0:00:51.1]} 28... f4+ {[%clk 0:02:00.3]} 29. Kd2
{[%clk 0:00:50.7]} 29... h5 {[%clk 0:02:00.7]} 30. b4 {[%clk 0:00:46.6]} 30...
axb4 {[%clk 0:01:59.7]} 31. cxb4 {[%clk 0:00:45.9]} 31... Na4 {[%clk 0:01:57.7]}
32. Nd3 {[%clk 0:00:44.7]} 32... Kd6 {[%clk 0:01:57]} 33. Kc2 {[%clk 0:00:41.3]}
33... Nb6 {[%clk 0:01:56.8]} 34. Nc5 {[%clk 0:00:39.9]} 34... Nc4 {[%clk
0:01:55.4]} 35. Kd3 {[%clk 0:00:33.9]} 35... Ne3 {[%clk 0:01:54.2]} 36. g4
{[%clk 0:00:34.2]} 36... hxg4 {[%clk 0:01:44.7]} 37. hxg4 {[%clk 0:00:32.9]}
37... Nc4 {[%clk 0:01:43.6]} 38. Kc3 {[%clk 0:00:31]} 38... Nb6 {[%clk
0:01:42.9]} 39. Kb3 {[%clk 0:00:29.3]} 39... Nc4 {[%clk 0:01:42]} 40. Kc3 {[%clk
0:00:28.4]} 40... Ne3 {[%clk 0:01:39.8]} 41. Kd3 {[%clk 0:00:26.1]} 41... Ng2
{[%clk 0:01:38.5]} 42. Ke2 {[%clk 0:00:13.1]} 42... Ke7 {[%clk 0:01:32.6]} 43.
Nd3 {[%clk 0:00:09.4]} 43... Kd6 {[%clk 0:01:31.6]} 44. Nc5 {[%clk 0:00:09.5]}
44... Ne3 {[%clk 0:01:29.6]} 45. Nb7+ {[%clk 0:00:08.6]} 45... Ke7 {[%clk
0:01:27.6]} 46. Nc5 {[%clk 0:00:09.5]} 46... Nc2 {[%clk 0:01:27.1]} 47. Nd3
{[%clk 0:00:09.7]} 47... Kd6 {[%clk 0:01:24.7]} 48. Kf2 {[%clk 0:00:05.6]} 48...
Nd4 {[%clk 0:01:20.8]} 49. Nc5 {[%clk 0:00:03.8]} 49... Kc7 {[%clk 0:01:16]} 50.
Nd3 {[%clk 0:00:03.5]} 50... Kd6 {[%clk 0:01:15]} 51. Nc5 {[%clk 0:00:03.9]}
51... Nc2 {[%clk 0:01:13.7]} 52. Nd3 {[%clk 0:00:03.9]} 52... Na3 {[%clk
0:01:11.9]} 53. Ke2 {[%clk 0:00:03.6]} 53... Nc4 {[%clk 0:01:11.8]} 54. Nc5
{[%clk 0:00:02.1]} 54... Nb6 {[%clk 0:01:11.5]} 55. Nb7+ {[%clk 0:00:02.3]}
55... Ke7 {[%clk 0:01:09.9]} 56. Nc5 {[%clk 0:00:03.2]} 56... Kf6 {[%clk
0:01:06.2]} 57. Nd3 {[%clk 0:00:04.1]} 57... Nd7 {[%clk 0:01:05.2]} 58. Kf2
{[%clk 0:00:03.6]} 58... Ke6 {[%clk 0:01:05.6]} 59. Ke2 {[%clk 0:00:03.8]} 59...
Kd6 {[%clk 0:01:06.1]} 60. Kd2 {[%clk 0:00:04.1]} 60... c5 {[%clk 0:01:06]} 61.
bxc5+ {[%clk 0:00:05]} 61... Nxc5 {[%clk 0:01:06]} 62. Nb4 {[%clk 0:00:05.8]}
62... Ne6 {[%clk 0:01:00.2]} 63. Nd3 {[%clk 0:00:06.2]} 63... Nd4 {[%clk
0:00:59.5]} 64. Ne1 {[%clk 0:00:06.7]} 64... Kc5 {[%clk 0:00:59]} 65. Kc3 {[%clk
0:00:07.2]} 65... b4+ {[%clk 0:00:58.4]} 66. Kd3 {[%clk 0:00:07.7]} 66... Nb5
{[%clk 0:00:56]} 67. Nc2 {[%clk 0:00:03.8]} 67... Nd6 {[%clk 0:00:43.8]} 68. Na1
{[%clk 0:00:01.8]} 68... Kb5 {[%clk 0:00:40.6]} 69. Nb3 {[%clk 0:00:02.7]} 69...
Nc4 {[%clk 0:00:36.8]} 70. Nc1 {[%clk 0:00:02.7]} 70... Ne3 {[%clk 0:00:29]} 71.
Nb3 {[%clk 0:00:02.9]} 71... Ka4 {[%clk 0:00:24.9]} 72. Nc1 {[%clk 0:00:02.6]}
72... Ka3 {[%clk 0:00:25.5]} 73. Nb3 {[%clk 0:00:01.7]} 73... Kxa2 {[%clk
0:00:24.9]} 74. Nc5 {[%clk 0:00:02]} 74... b3 {[%clk 0:00:25.1]} 75. Na4 {[%clk
0:00:02.3]} 75... b2 {[%clk 0:00:22.8]} 76. Nc3+ {[%clk 0:00:02.6]} 76... Ka1
{[%clk 0:00:23.2]} 77. Kd2 {[%clk 0:00:01.8]} 77... b1=Q {[%clk 0:00:21.1]} 78.
Nxb1 {[%clk 0:00:02.1]} 78... Kxb1 {[%clk 0:00:21.8]} 79. Kc3 {[%clk 0:00:03]}
79... Kc1 {[%clk 0:00:21.5]} 80. Kb4 {[%clk 0:00:03.9]} 80... Kd2 {[%clk
0:00:21.6]} 81. Kc5 {[%clk 0:00:04.8]} 81... Ke2 {[%clk 0:00:22]} 82. Kd6 {[%clk
0:00:05.7]} 82... Nc4+ {[%clk 0:00:20.6]} 83. Kd5 {[%clk 0:00:05.6]} 83... Kxf3
{[%clk 0:00:20.7]} 84. Kxc4 {[%clk 0:00:06.5]} 84... Kxe4 {[%clk 0:00:20.4]} 0-1

[Event "*** Titled Tuesday Blitz"]
[Site "Chess.com"]
[Date "2020.05.12"]
[Round "6"]
[White "binbin239"]
[Black "Caisachess"]
[Result "1/2-1/2"]
[WhiteElo "2474"]
[BlackElo "2311"]
[TimeControl "180+1"]
[EndTime "11:08:09 PDT"]
[Termination "Game drawn by stalemate"]

1. d4 {[%clk 0:03:00.7]} 1... Nf6 {[%clk 0:02:56.7]} 2. Nf3 {[%clk 0:03:01]}
2... e6 {[%clk 0:02:50.6]} 3. g3 {[%clk 0:03:01.5]} 3... d5 {[%clk 0:02:49]} 4.
Bg2 {[%clk 0:03:01.9]} 4... Be7 {[%clk 0:02:44.1]} 5. O-O {[%clk 0:02:51.5]}
5... O-O {[%clk 0:02:43.9]} 6. c4 {[%clk 0:02:51.5]} 6... dxc4 {[%clk
0:02:43.5]} 7. Ne5 {[%clk 0:02:51.4]} 7... Nc6 {[%clk 0:02:39.3]} 8. Nxc6 {[%clk
0:02:51]} 8... bxc6 {[%clk 0:02:37.3]} 9. Na3 {[%clk 0:02:51.6]} 9... c3 {[%clk
0:02:35.8]} 10. bxc3 {[%clk 0:02:51]} 10... Nd5 {[%clk 0:02:15.7]} 11. Qc2
{[%clk 0:02:47.3]} 11... Ba6 {[%clk 0:02:10]} 12. Rd1 {[%clk 0:02:46.7]} 12...
Rb8 {[%clk 0:01:59.3]} 13. e4 {[%clk 0:02:41.2]} 13... Nb6 {[%clk 0:01:45]} 14.
Rb1 {[%clk 0:02:24.2]} 14... Nc4 {[%clk 0:01:37.3]} 15. Nxc4 {[%clk 0:02:23.4]}
15... Bxc4 {[%clk 0:01:38.2]} 16. Bf4 {[%clk 0:02:22.7]} 16... Bd6 {[%clk
0:01:36.7]} 17. Be3 {[%clk 0:02:21]} 17... Be7 {[%clk 0:01:14.9]} 18. Qa4 {[%clk
0:02:18.1]} 18... Bb5 {[%clk 0:01:13.3]} 19. Qc2 {[%clk 0:02:13]} 19... Bc4
{[%clk 0:01:10.4]} 20. Bf4 {[%clk 0:02:09.8]} 20... Qc8 {[%clk 0:00:58.6]} 21.
d5 {[%clk 0:02:02.8]} 21... cxd5 {[%clk 0:00:57.1]} 22. exd5 {[%clk 0:02:03.2]}
22... Rxb1 {[%clk 0:00:55.4]} 23. Qxb1 {[%clk 0:01:57.2]} 23... exd5 {[%clk
0:00:50.6]} 24. Bxd5 {[%clk 0:01:54.6]} 24... Bxd5 {[%clk 0:00:51.5]} 25. Rxd5
{[%clk 0:01:54.3]} 25... Qe6 {[%clk 0:00:45.2]} 26. Qd1 {[%clk 0:01:53.2]} 26...
c6 {[%clk 0:00:41.4]} 27. Rd7 {[%clk 0:01:52.3]} 27... Bc5 {[%clk 0:00:40]} 28.
Rd2 {[%clk 0:01:40.8]} 28... h6 {[%clk 0:00:37.9]} 29. Qb3 {[%clk 0:01:40.8]}
29... Re8 {[%clk 0:00:36.5]} 30. Qxe6 {[%clk 0:01:39.9]} 30... Rxe6 {[%clk
0:00:36.5]} 31. Kg2 {[%clk 0:01:39.4]} 31... Kf8 {[%clk 0:00:33.7]} 32. Rd8+
{[%clk 0:01:36.5]} 32... Re8 {[%clk 0:00:31.3]} 33. Rd2 {[%clk 0:01:36.5]} 33...
Re6 {[%clk 0:00:30.8]} 34. h4 {[%clk 0:01:34.8]} 34... h5 {[%clk 0:00:29.6]} 35.
Rb2 {[%clk 0:01:34.2]} 35... Bb6 {[%clk 0:00:27.5]} 36. Bg5 {[%clk 0:01:30.8]}
36... f6 {[%clk 0:00:27.1]} 37. Bf4 {[%clk 0:01:29.3]} 37... Kf7 {[%clk
0:00:27]} 38. Rd2 {[%clk 0:01:29.4]} 38... Re7 {[%clk 0:00:26.6]} 39. Kf3 {[%clk
0:01:28.3]} 39... Ke6 {[%clk 0:00:26.5]} 40. Re2+ {[%clk 0:01:28.4]} 40... Kd7
{[%clk 0:00:25.7]} 41. Rd2+ {[%clk 0:01:28.9]} 41... Kc8 {[%clk 0:00:24.3]} 42.
Rd6 {[%clk 0:01:26.9]} 42... Kb7 {[%clk 0:00:22.7]} 43. Rd2 {[%clk 0:01:25.9]}
43... Kc8 {[%clk 0:00:22.1]} 44. a4 {[%clk 0:01:24.7]} 44... Kb7 {[%clk
0:00:21.8]} 45. c4 {[%clk 0:01:24.8]} 45... Bc5 {[%clk 0:00:20.3]} 46. Rb2+
{[%clk 0:01:23.5]} 46... Ka6 {[%clk 0:00:20.3]} 47. Bd2 {[%clk 0:01:20.3]} 47...
Rd7 {[%clk 0:00:20.1]} 48. Ke2 {[%clk 0:01:19.2]} 48... Re7+ {[%clk 0:00:19.9]}
49. Kd3 {[%clk 0:01:19.6]} 49... Bxf2 {[%clk 0:00:19.1]} 50. Bf4 {[%clk
0:01:15.4]} 50... Rd7+ {[%clk 0:00:18.4]} 51. Ke4 {[%clk 0:01:14.9]} 51... Bc5
{[%clk 0:00:18.8]} 52. Kf5 {[%clk 0:01:15]} 52... Bd4 {[%clk 0:00:17.8]} 53. Rb3
{[%clk 0:01:11.9]} 53... c5 {[%clk 0:00:18]} 54. Kg6 {[%clk 0:01:12]} 54... Ka5
{[%clk 0:00:18.2]} 55. Rb5+ {[%clk 0:01:04.1]} 55... Kxa4 {[%clk 0:00:18.4]} 56.
Kxh5 {[%clk 0:01:03.8]} 56... Ka3 {[%clk 0:00:13.9]} 57. Kg6 {[%clk 0:01:02.2]}
57... Ka4 {[%clk 0:00:14]} 58. g4 {[%clk 0:01:02]} 58... Ka3 {[%clk 0:00:14.1]}
59. h5 {[%clk 0:01:01.1]} 59... Ka4 {[%clk 0:00:14.2]} 60. Rb8 {[%clk
0:01:00.7]} 60... a5 {[%clk 0:00:13.9]} 61. g5 {[%clk 0:01:00.8]} 61... fxg5
{[%clk 0:00:12.5]} 62. Bxg5 {[%clk 0:01:01.3]} 62... Ka3 {[%clk 0:00:12.6]} 63.
Bc1+ {[%clk 0:00:55.9]} 63... Ka2 {[%clk 0:00:10]} 64. Ra8 {[%clk 0:00:55]}
64... Bc3 {[%clk 0:00:09.5]} 65. Be3 {[%clk 0:00:53]} 65... Kb3 {[%clk
0:00:09.1]} 66. Bxc5 {[%clk 0:00:53.1]} 66... Kxc4 {[%clk 0:00:09.4]} 67. Bf8
{[%clk 0:00:51.8]} 67... Kb5 {[%clk 0:00:07.4]} 68. Rb8+ {[%clk 0:00:51.2]}
68... Kc4 {[%clk 0:00:06.9]} 69. Rc8+ {[%clk 0:00:51.5]} 69... Kb3 {[%clk
0:00:06.6]} 70. Ra8 {[%clk 0:00:49.2]} 70... a4 {[%clk 0:00:06.5]} 71. Ra6
{[%clk 0:00:48.9]} 71... Bb2 {[%clk 0:00:04.6]} 72. Rb6+ {[%clk 0:00:47.9]}
72... Kc2 {[%clk 0:00:04.8]} 73. Rc6+ {[%clk 0:00:45.7]} 73... Kb3 {[%clk
0:00:04.7]} 74. Rb6+ {[%clk 0:00:45.7]} 74... Kc2 {[%clk 0:00:05.2]} 75. Ra6
{[%clk 0:00:45.2]} 75... Kb3 {[%clk 0:00:06.1]} 76. Kh7 {[%clk 0:00:44.1]} 76...
a3 {[%clk 0:00:06.3]} 77. Kg8 {[%clk 0:00:43.3]} 77... a2 {[%clk 0:00:06.5]} 78.
Rb6+ {[%clk 0:00:43.2]} 78... Kc2 {[%clk 0:00:06.5]} 79. Rc6+ {[%clk 0:00:43.3]}
79... Kb1 {[%clk 0:00:07.4]} 80. Ra6 {[%clk 0:00:42]} 80... a1=Q {[%clk
0:00:08.3]} 81. Rxa1+ {[%clk 0:00:42]} 81... Bxa1 {[%clk 0:00:09.2]} 82. Bc5
{[%clk 0:00:41.4]} 82... Kc2 {[%clk 0:00:09.1]} 83. Bf8 {[%clk 0:00:41.4]} 83...
Kd3 {[%clk 0:00:09.5]} 84. Bc5 {[%clk 0:00:41.7]} 84... Ke4 {[%clk 0:00:10.4]}
85. Bf8 {[%clk 0:00:42]} 85... Kf5 {[%clk 0:00:10.8]} 86. h6 {[%clk 0:00:42.5]}
86... gxh6 {[%clk 0:00:10.6]} 87. Bxh6 {[%clk 0:00:42.8]} 87... Kg6 {[%clk
0:00:10.9]} 88. Bf8 {[%clk 0:00:43.2]} 88... Rd8 {[%clk 0:00:11]} 1/2-1/2

[Event "*** Titled Tuesday Blitz"]
[Site "Chess.com"]
[Date "2020.05.12"]
[Round "6"]
[White "Irishchessman16"]
[Black "Chessmasterzt"]
[Result "1/2-1/2"]
[WhiteElo "2415"]
[BlackElo "2563"]
[TimeControl "180+1"]
[EndTime "11:08:10 PDT"]
[Termination "Game drawn - insufficient material"]

1. e4 {[%clk 0:03:00.9]} 1... d5 {[%clk 0:02:59.8]} 2. exd5 {[%clk 0:02:59.4]}
2... Nf6 {[%clk 0:03:00.3]} 3. d4 {[%clk 0:02:57.9]} 3... Bg4 {[%clk 0:03:00.6]}
4. Be2 {[%clk 0:02:55.7]} 4... Bxe2 {[%clk 0:03:00.4]} 5. Nxe2 {[%clk
0:02:50.4]} 5... Qxd5 {[%clk 0:03:01.3]} 6. O-O {[%clk 0:02:47.4]} 6... Nc6
{[%clk 0:03:01.7]} 7. Nbc3 {[%clk 0:02:46]} 7... Qh5 {[%clk 0:03:01.8]} 8. Nf4
{[%clk 0:02:40.8]} 8... Qxd1 {[%clk 0:03:00.3]} 9. Rxd1 {[%clk 0:02:41.7]} 9...
O-O-O {[%clk 0:02:59.5]} 10. Be3 {[%clk 0:02:40.1]} 10... g5 {[%clk 0:02:54.3]}
11. Nfe2 {[%clk 0:02:32.1]} 11... h6 {[%clk 0:02:54.3]} 12. f3 {[%clk
0:02:28.6]} 12... Nb4 {[%clk 0:02:48.7]} 13. Rd2 {[%clk 0:02:27]} 13... Nfd5
{[%clk 0:02:43.4]} 14. Nxd5 {[%clk 0:02:26.2]} 14... Nxd5 {[%clk 0:02:44.3]} 15.
Bf2 {[%clk 0:02:25.9]} 15... Bg7 {[%clk 0:02:44.7]} 16. c4 {[%clk 0:02:23.1]}
16... Nb6 {[%clk 0:02:44.9]} 17. b3 {[%clk 0:02:19.7]} 17... e6 {[%clk
0:02:45.1]} 18. Rad1 {[%clk 0:02:12.4]} 18... Rd7 {[%clk 0:02:44.4]} 19. d5
{[%clk 0:01:55.4]} 19... exd5 {[%clk 0:02:37.6]} 20. c5 {[%clk 0:01:54.9]} 20...
Na8 {[%clk 0:02:33.3]} 21. Rxd5 {[%clk 0:01:54.5]} 21... Rhd8 {[%clk 0:02:20.4]}
22. Rxd7 {[%clk 0:01:47]} 22... Rxd7 {[%clk 0:02:21.3]} 23. Rxd7 {[%clk
0:01:43.1]} 23... Kxd7 {[%clk 0:02:22.2]} 24. Ng3 {[%clk 0:01:41.5]} 24... c6
{[%clk 0:02:17.6]} 25. Nf5 {[%clk 0:01:39.5]} 25... Bf8 {[%clk 0:02:18]} 26. g4
{[%clk 0:01:37.4]} 26... Nc7 {[%clk 0:02:17.8]} 27. Kf1 {[%clk 0:01:27.5]} 27...
Ne6 {[%clk 0:02:17.9]} 28. b4 {[%clk 0:01:26.3]} 28... Nf4 {[%clk 0:01:56]} 29.
Be3 {[%clk 0:01:25.7]} 29... Nd5 {[%clk 0:01:54.9]} 30. Bd2 {[%clk 0:01:25.3]}
30... b6 {[%clk 0:01:52.6]} 31. cxb6 {[%clk 0:01:20.6]} 31... axb6 {[%clk
0:01:53.5]} 32. a3 {[%clk 0:01:18.2]} 32... b5 {[%clk 0:01:46.5]} 33. Ke2 {[%clk
0:01:15]} 33... f6 {[%clk 0:01:27.5]} 34. Kd3 {[%clk 0:01:13.7]} 34... c5 {[%clk
0:01:27.2]} 35. Ke4 {[%clk 0:00:44.5]} 35... Ke6 {[%clk 0:01:03]} 36. bxc5
{[%clk 0:00:37.5]} 36... Bxc5 {[%clk 0:01:03.9]} 37. Nd4+ {[%clk 0:00:35.7]}
37... Bxd4 {[%clk 0:00:49.1]} 38. Kxd4 {[%clk 0:00:34.9]} 38... Kd6 {[%clk
0:00:33.7]} 39. Be1 {[%clk 0:00:34]} 39... Nb6 {[%clk 0:00:25.6]} 40. Bb4+
{[%clk 0:00:23.7]} 40... Kc6 {[%clk 0:00:21.9]} 41. Bf8 {[%clk 0:00:22.7]} 41...
Nc4 {[%clk 0:00:20.3]} 42. a4 {[%clk 0:00:20]} 42... Nd2 {[%clk 0:00:19.6]} 43.
axb5+ {[%clk 0:00:19.7]} 43... Kxb5 {[%clk 0:00:18.9]} 44. Ke3 {[%clk
0:00:20.2]} 44... Nc4+ {[%clk 0:00:17]} 45. Kf2 {[%clk 0:00:20.4]} 45... Kc6
{[%clk 0:00:16.2]} 46. Bxh6 {[%clk 0:00:20.7]} 46... Kd5 {[%clk 0:00:16.3]} 47.
Bf8 {[%clk 0:00:19.6]} 47... Ke5 {[%clk 0:00:14.5]} 48. Bb4 {[%clk 0:00:20]}
48... Nb6 {[%clk 0:00:14.1]} 49. Bc3+ {[%clk 0:00:19.6]} 49... Ke6 {[%clk
0:00:14.2]} 50. Kg3 {[%clk 0:00:19.7]} 50... Nd5 {[%clk 0:00:15.1]} 51. Bd2
{[%clk 0:00:19.5]} 51... Nb6 {[%clk 0:00:14.7]} 52. f4 {[%clk 0:00:19]} 52...
gxf4+ {[%clk 0:00:13.5]} 53. Bxf4 {[%clk 0:00:18.5]} 53... Nd5 {[%clk
0:00:14.4]} 54. h4 {[%clk 0:00:17.3]} 54... Kf7 {[%clk 0:00:15.3]} 55. Bd2
{[%clk 0:00:16.5]} 55... Kg6 {[%clk 0:00:15.2]} 56. h5+ {[%clk 0:00:16.6]} 56...
Kf7 {[%clk 0:00:15.3]} 57. Kf3 {[%clk 0:00:17.1]} 57... Kg7 {[%clk 0:00:14.8]}
58. Ke4 {[%clk 0:00:17.1]} 58... Ne7 {[%clk 0:00:14.8]} 59. Bb4 {[%clk
0:00:16.1]} 59... Ng8 {[%clk 0:00:14.2]} 60. Kf5 {[%clk 0:00:13.8]} 60... Kf7
{[%clk 0:00:13.1]} 61. Bd2 {[%clk 0:00:12.9]} 61... Ne7+ {[%clk 0:00:12.8]} 62.
Ke4 {[%clk 0:00:12.8]} 62... Ng8 {[%clk 0:00:13]} 63. Kf4 {[%clk 0:00:12.3]}
63... Ne7 {[%clk 0:00:12.7]} 64. Bb4 {[%clk 0:00:11.9]} 64... Ng8 {[%clk
0:00:12.8]} 65. Bd6 {[%clk 0:00:11.4]} 65... Nh6 {[%clk 0:00:12.1]} 66. Bc7
{[%clk 0:00:11]} 66... Ng8 {[%clk 0:00:12.5]} 67. Bd8 {[%clk 0:00:10.9]} 67...
Nh6 {[%clk 0:00:12.3]} 68. Ba5 {[%clk 0:00:10.4]} 68... Ng8 {[%clk 0:00:12.2]}
69. Bc3 {[%clk 0:00:10.4]} 69... Nh6 {[%clk 0:00:11.8]} 70. Bb2 {[%clk
0:00:09.5]} 70... Ng8 {[%clk 0:00:11.4]} 71. Bc1 {[%clk 0:00:09]} 71... Ne7
{[%clk 0:00:11.3]} 72. Ke4 {[%clk 0:00:08.6]} 72... Ng8 {[%clk 0:00:10.5]} 73.
h6 {[%clk 0:00:08.3]} 73... Kg6 {[%clk 0:00:09.7]} 74. Kd5 {[%clk 0:00:07]}
74... Nxh6 {[%clk 0:00:09.7]} 75. Bxh6 {[%clk 0:00:05.4]} 75... Kxh6 {[%clk
0:00:10.6]} 76. Ke4 {[%clk 0:00:05.3]} 76... Kg5 {[%clk 0:00:10.8]} 77. Kf3
{[%clk 0:00:05.8]} 77... Kh6 {[%clk 0:00:09.2]} 78. Kf4 {[%clk 0:00:05.5]} 78...
Kg6 {[%clk 0:00:10.1]} 79. Kf3 {[%clk 0:00:05.9]} 79... Kg5 {[%clk 0:00:11]} 80.
Kg3 {[%clk 0:00:06]} 80... Kg6 {[%clk 0:00:11.1]} 81. Kf4 {[%clk 0:00:06.1]}
81... Kf7 {[%clk 0:00:12]} 82. Kf5 {[%clk 0:00:06.2]} 82... Kg7 {[%clk
0:00:12.9]} 83. g5 {[%clk 0:00:06.4]} 83... fxg5 {[%clk 0:00:12.2]} 84. Kxg5
{[%clk 0:00:07.3]} 1/2-1/2